fUST/lending_fUST_20250512
["ID","MTS","AMOUNT","RATE_DAILY","PERIOD"]
[360764872,1746994147322,-500.0,0.00020184,2]
[360764873,1746994147347,-500.0,0.00020184,2]
[360764874,1746994147371,-500.0,0.00020184,2]
[360764875,1746994147393,-500.0,0.00020184,2]
[360764876,1746994147416,-500.0,0.00020184,2]
[360764877,1746994147441,-464.76471323,0.00020184,2]
[360764878,1746994147464,-500.0,0.00020184,2]
[360764879,1746994147488,-500.0,0.00020184,2]
[360764880,1746994147511,-500.0,0.00020184,2]
[360764881,1746994147534,-500.0,0.00020184,2]
[360764882,1746994147558,-34.87611839,0.00020184,2]
[360764885,1746994156193,-465.12388161,0.00020184,2]
[360764886,1746994156219,-500.0,0.00020184,2]
[360764887,1746994156247,-500.0,0.00020184,2]
[360764888,1746994156275,-500.0,0.00020184,2]
[360764889,1746994156307,-500.0,0.00020184,2]
[360764890,1746994156333,-500.0,0.00020184,2]
[360764891,1746994156361,-500.0,0.00020184,2]
[360764892,1746994156387,-500.0,0.00020184,2]
[360764893,1746994156412,-500.0,0.00020184,2]
[360764894,1746994156437,-500.0,0.00020184,2]
[360764895,1746994156462,-500.0,0.00020184,2]
[360764896,1746994156485,-500.0,0.00020184,2]
[360764897,1746994156505,-311.49130769,0.00020187,2]
[360764898,1746994156524,-1167.30021976,0.00020384,2]
[360764899,1746994156546,-204.80492774,0.000219,6]
[360764900,1746994156565,-150.0,0.00021918,2]
[360764901,1746994156584,-150.0,0.00022,2]
[360764902,1746994156603,-200.0,0.00022,2]
[360764903,1746994156622,-500.0,0.00022,2]
[360764904,1746994156643,-204.80492768,0.000224,7]
[360764905,1746994156663,-157.77,0.0002248,2]
[360764906,1746994156684,-500.0,0.000225,2]
[360764907,1746994156708,-289.329,0.00022856,15]
[360764908,1746994156730,-204.80492768,0.000229,8]
[360764909,1746994156751,-204.80492768,0.000234,9]
[360764910,1746994156771,-2241.0,0.00023639,2]
[360764911,1746994156791,-658.0,0.00023639,2]
[360764912,1746994156812,-404.0,0.00023639,2]
[360764913,1746994156834,-204.80492768,0.000239,10]
[360764914,1746994156855,-204.80492768,0.000244,11]
[360764915,1746994156876,-300.0,0.00024658,2]
[360764916,1746994156896,-299.46861581,0.00024658,2]
[360764917,1746994156919,-204.80492768,0.000249,12]
[360764918,1746994156939,-312.233128,0.00025173,2]
[360764919,1746994156960,-1167.30021976,0.00025384,2]
[360764920,1746994156982,-204.80492768,0.000254,13]
[360764921,1746994157002,-200.0,0.00025711,15]
[360764922,1746994157112,580.5,0.00022856,15]
[360764923,1746994162497,288.5,0.00022856,15]
[360765009,1746994238687,-160.0,0.00025843,2]
[360765010,1746994238703,-500.0,0.00026,120]
[360765011,1746994238716,-432.630288,0.00026676,2]
[360765012,1746994238728,-204.80492768,0.000269,16]
[360765013,1746994238739,-160.0,0.00026923,2]
[360765014,1746994238750,-6680.97098876,0.00027,30]
[360765015,1746994238762,-147.67879556,0.00027,120]
[360765016,1746994238778,-352.32120444,0.00027,120]
[360765017,1746994238789,-368.06,0.00027,7]
[360765019,1746994238800,-60.32047105,0.00027,120]
[360765020,1746994238815,-139.67952895,0.00027,120]
[360765022,1746994238826,-338.0,0.00027,2]
[360765024,1746994238838,-314.1995513,0.00027,3]
[360765025,1746994238849,-53.83538378,0.00027018,2]
[360765026,1746994238863,-153.56461622,0.00027018,2]
[360765027,1746994238876,-500.0,0.00027083,2]
[360765028,1746994238888,-204.80492768,0.00027329,16]
[360765029,1746994238899,-500.0,0.00027397,2]
[360765030,1746994238913,-500.0,0.00027397,2]
[360765031,1746994238923,-580.18429812,0.00027397,2]
[360765032,1746994238933,-450.0,0.00027397,5]
[360765033,1746994238945,-1104.59358178,0.00027397,120]
[360765037,1746994240900,-1073.81180279,0.00027397,120]
[360765038,1746994240914,-555.29716743,0.00027397,120]
[360765039,1746994240924,-500.0,0.00027397,5]
[360765040,1746994240933,-362.919736,0.00027452,30]
[360765041,1746994240943,-362.919736,0.00027452,30]
[360765042,1746994240953,-362.919736,0.00027452,30]
[360765043,1746994240962,-360.47805607,0.00027452,30]
[360765044,1746994240981,-2.44167993,0.00027452,30]
[360765045,1746994240990,-500.0,0.00027473,5]
[360765046,1746994240999,-9939.55832007,0.000275,2]
[360765062,1746994243947,-17.26691561,0.000275,2]
[360765064,1746994243959,-35119.62800625,0.000275,2]
[360765066,1746994243968,-821.84108302,0.000275,30]
[360765067,1746994243978,-1612.152002,0.000275,2]
[360765068,1746994243988,-240.88,0.00027671,2]
[360765069,1746994243997,-204.80492768,0.00027757,17]
[360765070,1746994244005,-464.40395831,0.00027853,2]
[360765071,1746994244015,-1041.04627186,0.000279,2]
[360765072,1746994244024,-80201.3512582,0.00027952,2]
[360765073,1746994244033,-3170.6228406,0.00027952,2]
[360765074,1746994244043,-576.15505988,0.00027973,5]
[360765075,1746994244053,-500.0,0.00027973,5]
[360765076,1746994244062,-500.0,0.00027973,5]
[360765077,1746994244071,-500.0,0.00027973,5]
[360765078,1746994244080,-500.0,0.00027973,5]
[360765079,1746994244090,-500.0,0.00027973,2]
[360765080,1746994244099,-500.0,0.00027973,5]
[360765081,1746994244107,-500.0,0.00027973,5]
[360765082,1746994244117,-500.0,0.00027973,5]
[360765083,1746994244126,-80201.3512582,0.0002798,2]
[360765084,1746994244135,-3170.6228406,0.0002798,2]
[360765085,1746994244144,-1192.69146086,0.0002799,7]
[360765086,1746994244153,-151.0,0.0002799,7]
[360765087,1746994244163,-503.921885,0.0002799,7]
[360765088,1746994244172,-503.921885,0.0002799,7]
[360765089,1746994244181,-151.0,0.0002799,7]
[360765090,1746994244190,-151.0,0.0002799,7]
[360765091,1746994244199,-151.0,0.0002799,7]
[360765092,1746994244208,-210.731765,0.0002799,7]
[360765094,1746994244218,-210.731765,0.0002799,7]
[360765095,1746994244227,-13366.8918764,0.0002799,2]
[360765096,1746994244236,-528.4371401,0.0002799,2]
[360765097,1746994244245,-50000.0288758,0.00028,120]
[360765098,1746994244256,-151.0,0.00028,7]
[360765099,1746994244265,-151.0,0.00028,7]
[360765100,1746994244274,-151.0,0.00028,7]
[360765101,1746994244283,-151.0,0.00028,7]
[360765103,1746994244293,-151.0,0.00028,7]
[360765104,1746994244304,-500.0,0.00028,120]
[360765105,1746994244314,-422.1676983,0.00028,3]
[360765106,1746994244323,-212.1539542,0.00028,120]
[360765107,1746994244333,-1000.0,0.00028,2]
[360765108,1746994244343,-151.0,0.00028027,2]
[360765109,1746994244353,-800.0,0.00028034,7]
[360765110,1746994244362,-151.0,0.00028054,2]
[360765111,1746994244371,-175.64244569,0.00028082,2]
[360765112,1746994244383,-464.40395827,0.00028115,2]
[360765113,1746994244392,-175.6392797,0.00028137,30]
[360765114,1746994244401,-1164.3919533,0.00028137,30]
[360765115,1746994244410,-391.7553925,0.00028137,30]
[360765116,1746994244419,-212.1539542,0.00028137,30]
[360765117,1746994244429,-175.6392797,0.00028137,30]
[360765118,1746994244438,-175.6392797,0.00028137,30]
[360765119,1746994244448,-175.6392797,0.00028137,30]
[360765120,1746994244458,-997.71092301,0.00028137,30]
[360765121,1746994244467,-175.6392797,0.00028137,30]
[360765122,1746994244644,-175.6392797,0.00028137,30]
[360765123,1746994244654,-204.80492768,0.00028186,18]
[360765124,1746994244663,-200.0,0.000282,120]
[360765125,1746994244672,-160.0,0.00028293,2]
[360765126,1746994244683,-464.40395827,0.00028377,2]
[360765127,1746994244692,-231.28369723,0.00028387,2]
[360765128,1746994244701,-1582.859196,0.000285,7]
[360765129,1746994244710,-1000.0,0.000285,2]
[360765130,1746994244719,-312.233128,0.00028598,2]
[360765131,1746994244729,-204.80492768,0.00028614,19]
[360765132,1746994244739,-464.40395827,0.00028638,2]
[360765133,1746994244748,-500.0,0.00028673,5]
[360765134,1746994244757,-456.55216519,0.00028673,5]
[360765135,1746994244766,-500.0,0.00028673,5]
[360765136,1746994244775,-500.0,0.00028673,5]
[360765137,1746994244784,-500.0,0.00028673,5]
[360765138,1746994244794,-508.67259706,0.0002868,2]
[360765139,1746994244803,-2983.22381518,0.0002868,3]
[360765140,1746994244813,-80201.3512582,0.0002868,2]
[360765141,1746994244822,-3170.6228406,0.0002868,2]
[360765142,1746994244831,-151.0,0.0002869,7]
[360765143,1746994244841,-503.921885,0.0002869,7]
[360765144,1746994244850,-503.921885,0.0002869,7]
[360765145,1746994244860,-151.0,0.0002869,7]
[360765146,1746994244869,-210.731765,0.0002869,7]
[360765147,1746994244879,-210.731765,0.0002869,7]
[360765148,1746994244891,-422.1676983,0.0002869,7]
[360765149,1746994244900,-212.1539542,0.0002869,7]
[360765150,1746994244910,-160.0,0.0002869,7]
[360765151,1746994244920,-997.71092301,0.0002869,7]
[360765152,1746994244930,-167.60644569,0.000288,7]
[360765153,1746994244939,-800.0,0.00028856,7]
[360765154,1746994244949,-464.40395827,0.000289,2]
[360765155,1746994244958,-13366.8918764,0.00028949,2]
[360765156,1746994244967,-528.4371401,0.00028949,2]
[360765157,1746994244979,-175.6392797,0.00028959,30]
[360765158,1746994244988,-173.1322077,0.00028959,30]
[360765159,1746994244997,-422.1676983,0.00028959,30]
[360765160,1746994245007,-314.1995513,0.00028959,30]
[360765161,1746994245016,-500.0,0.00028973,5]
[360765162,1746994245025,-500.0,0.00028973,5]
[360765163,1746994245036,-500.0,0.00028973,5]
[360765164,1746994245047,-500.0,0.00028973,5]
[360765165,1746994245058,-500.0,0.00028973,5]
[360765166,1746994245067,-500.0,0.00028973,5]
[360765167,1746994245077,-500.0,0.00028973,5]
[360765168,1746994245086,-500.0,0.00028973,5]
[360765169,1746994245095,-500.0,0.00028973,5]
[360765170,1746994245104,-500.0,0.00028973,5]
[360765171,1746994245114,-500.0,0.00028973,5]
[360765172,1746994245125,-300.0,0.00028973,5]
[360765173,1746994245136,-500.0,0.00028973,5]
[360765174,1746994245148,-500.0,0.00028973,3]
[360765175,1746994245158,-522.30123638,0.00028973,5]
[360765176,1746994245167,-500.0,0.00028973,5]
[360765177,1746994245176,-500.0,0.00028973,5]
[360765178,1746994245185,-500.0,0.00028973,5]
[360765179,1746994245194,-500.0,0.00028973,5]
[360765180,1746994245203,-500.0,0.00028973,5]
[360765181,1746994245213,-500.70196316,0.00028973,5]
[360765182,1746994245223,-500.0,0.00028973,5]
[360765183,1746994245233,-500.0,0.00028973,5]
[360765184,1746994245244,-500.0,0.00028973,5]
[360765185,1746994245254,-500.0,0.00028973,5]
[360765186,1746994245264,-639.93959536,0.00028973,5]
[360765187,1746994245272,-500.0,0.00028973,5]
[360765188,1746994245282,-500.0,0.00028973,5]
[360765189,1746994245291,-500.0,0.00028973,5]
[360765190,1746994245304,-150.0,0.00028973,5]
[360765191,1746994245315,-151.0,0.0002898,7]
[360765192,1746994245325,-339.997175,0.0002898,7]
[360765193,1746994245334,-151.0,0.0002898,7]
[360765194,1746994245344,-250.97730233,0.0002899,2]
[360765195,1746994245354,-151.0,0.0002899,7]
[360765196,1746994245363,-339.997175,0.0002899,7]
[360765197,1746994245373,-151.0,0.0002899,7]
[360765198,1746994245383,-503.921885,0.0002899,7]
[360765199,1746994245392,-503.921885,0.0002899,7]
[360765200,1746994245401,-151.0,0.0002899,7]
[360765201,1746994245411,-287.497375,0.0002899,7]
[360765202,1746994245420,-210.731765,0.0002899,7]
[360765203,1746994245429,-210.731765,0.0002899,7]
[360765204,1746994245439,-151.0,0.0002899,7]
[360765205,1746994245448,-151.0,0.0002899,7]
[360765206,1746994245458,-151.0,0.0002899,7]
[360765207,1746994245467,-151.0,0.0002899,7]
[360765208,1746994245476,-155.350104,0.0002899,7]
[360765209,1746994245486,-151.0,0.0002899,7]
[360765210,1746994245496,-151.0,0.0002899,7]
[360765211,1746994245505,-243.120331,0.0002899,7]
[360765212,1746994245515,-243.120331,0.0002899,7]
[360765213,1746994245524,-151.0,0.0002899,7]
[360765214,1746994245534,-151.0,0.0002899,7]
[360765215,1746994245543,-151.0,0.0002899,7]
[360765216,1746994245552,-153.344174,0.0002899,7]
[360765217,1746994245562,-151.0,0.0002899,7]
[360765218,1746994245572,-151.0,0.0002899,7]
[360765219,1746994245582,-151.0,0.0002899,7]
[360765220,1746994245593,-819.52320226,0.00029,10]
[360765221,1746994245605,-21063.69397573,0.00029,7]
[360765222,1746994245621,-400.24575132,0.00029,7]
[360765223,1746994245635,-389.11834,0.00029,120]
[360765224,1746994245645,-43600.03884551,0.00029,7]
[360765225,1746994245656,-2029.8670182,0.00029,7]
[360765226,1746994245666,-43600.03884551,0.00029,7]
[360765227,1746994245676,-2029.8670182,0.00029,7]
[360765228,1746994245686,-22297.13287764,0.00029,3]
[360765229,1746994245696,-874.23193649,0.00029,2]
[360765230,1746994245705,-7292.30286768,0.00029,10]
[360765231,1746994245715,-204.035408,0.00029,7]
[360765232,1746994245726,-339.997175,0.00029,7]
[360765233,1746994245736,-500.0,0.00029,120]
[360765234,1746994245746,-151.0,0.00029,7]
[360765235,1746994245757,-503.921885,0.00029,7]
[360765236,1746994245767,-503.921885,0.00029,7]
[360765237,1746994245777,-151.0,0.00029,7]
[360765238,1746994245787,-151.0,0.00029,7]
[360765239,1746994245797,-151.0,0.00029,7]
[360765240,1746994245807,-210.731765,0.00029,7]
[360765241,1746994245817,-210.731765,0.00029,7]
[360765242,1746994245826,-151.0,0.00029,7]
[360765243,1746994245835,-173.943262,0.00029,7]
[360765244,1746994245845,-151.0,0.00029,7]
[360765245,1746994245855,-240.477686,0.00029,7]
[360765246,1746994245864,-383.398868,0.00029,7]
[360765247,1746994245875,-383.398868,0.00029,7]
[360765248,1746994245885,-151.0,0.00029,7]
[360765249,1746994245895,-151.0,0.00029,7]
[360765250,1746994245904,-151.0,0.00029,7]
[360765251,1746994245914,-151.0,0.00029,7]
[360765252,1746994245923,-151.0,0.00029,7]
[360765253,1746994245933,-151.0,0.00029,7]
[360765254,1746994245942,-151.0,0.00029,7]
[360765255,1746994245954,-151.0,0.00029,7]
[360765256,1746994245964,-151.0,0.00029,7]
[360765257,1746994245973,-151.0,0.00029,7]
[360765258,1746994245983,-151.0,0.00029,7]
[360765259,1746994245992,-151.0,0.00029,7]
[360765260,1746994246002,-151.0,0.00029,7]
[360765261,1746994246011,-151.0,0.00029,7]
[360765262,1746994246021,-151.0,0.00029,7]
[360765263,1746994246030,-151.0,0.00029,7]
[360765264,1746994246040,-243.120331,0.00029,7]
[360765265,1746994246049,-243.120331,0.00029,7]
[360765266,1746994246058,-204.154183,0.00029,7]
[360765267,1746994246068,-164.668058,0.00029,7]
[360765268,1746994246078,-151.0,0.00029,7]
[360765269,1746994246089,-151.0,0.00029,7]
[360765270,1746994246099,-151.0,0.00029,7]
[360765271,1746994246110,-151.66165,0.00029,7]
[360765272,1746994246120,-422.1676983,0.00029,3]
[360765273,1746994246130,-422.1676983,0.00029,10]
[360765274,1746994246139,-422.1676983,0.00029,7]
[360765275,1746994246149,-150.0,0.00029,30]
[360765276,1746994246158,-268.172939,0.00029,7]
[360765277,1746994246167,-151.0,0.00029,7]
[360765278,1746994246177,-268.172939,0.00029,7]
[360765279,1746994246186,-151.0,0.00029,7]
[360765280,1746994246198,-151.0,0.00029,7]
[360765281,1746994246207,-314.1995513,0.00029,10]
[360765282,1746994246217,-212.1539542,0.00029,3]
[360765283,1746994246227,-212.1539542,0.00029,10]
[360765284,1746994246237,-212.1539542,0.00029,7]
[360765285,1746994246246,-151.0,0.00029,7]
[360765286,1746994246255,-160.0,0.00029,3]
[360765287,1746994246265,-160.0,0.00029,10]
[360765288,1746994246276,-151.0,0.00029,7]
[360765289,1746994246286,-151.0,0.00029,7]
[360765290,1746994246297,-997.71092301,0.00029,3]
[360765291,1746994246308,-997.71092301,0.00029,10]
[360765292,1746994246318,-997.71092301,0.00029,7]
[360765293,1746994246328,-1000.0,0.00029,2]
[360765294,1746994246338,-204.80492768,0.00029043,20]
[360765295,1746994246347,-362.919736,0.0002923,30]
[360765296,1746994246356,-369.5215701,0.0002923,30]
[360765297,1746994246365,-262.29567,0.000294,120]
[360765298,1746994246377,-220.76522,0.000294,120]
[360765299,1746994246386,-262.29567,0.000294,120]
[360765300,1746994246396,-204.80492768,0.00029471,21]
[360765301,1746994246406,-1574.83,0.00029527,11]
[360765302,1746994246416,-303.0,0.00029589,9]
[360765303,1746994246425,-1574.83,0.00029627,16]
[360765304,1746994246435,-165.388426,0.00029646,30]
[360765305,1746994246445,-153.0,0.00029646,30]
[360765306,1746994246455,-153.0,0.00029646,30]
[360765307,1746994246464,-153.0,0.00029646,30]
[360765309,1746994246473,-153.0,0.00029646,30]
[360765310,1746994246483,-153.0,0.00029646,30]
[360765311,1746994246492,-153.0,0.00029646,30]
[360765312,1746994246501,-153.0,0.00029646,30]
[360765313,1746994246511,-153.0,0.00029646,30]
[360765314,1746994246521,-153.0,0.00029646,30]
[360765315,1746994246532,-153.0,0.00029646,30]
[360765316,1746994246541,-153.0,0.00029646,30]
[360765317,1746994246550,-153.0,0.00029646,30]
[360765318,1746994246559,-153.0,0.00029646,30]
[360765319,1746994246568,-153.0,0.00029646,30]
[360765320,1746994246578,-160.0,0.00029663,2]
[360765321,1746994246588,-800.0,0.00029678,7]
[360765322,1746994246597,-29463.97820351,0.000297,2]
[360765323,1746994246608,-1574.83,0.00029727,19]
[360765324,1746994246618,-153.0,0.00029781,30]
[360765325,1746994246627,-153.0,0.00029781,30]
[360765326,1746994246637,-153.0,0.00029781,30]
[360765327,1746994246647,-151.0,0.00029825,7]
[360765328,1746994246656,-268.172939,0.00029825,7]
[360765329,1746994246666,-151.0,0.00029825,7]
[360765330,1746994246675,-268.172939,0.00029825,7]
[360765331,1746994246684,-151.0,0.00029825,7]
[360765332,1746994246697,-151.0,0.00029825,7]
[360765333,1746994246707,-151.0,0.00029825,7]
[360765334,1746994246716,-192.443613,0.00029827,7]
[360765335,1746994246725,-192.443613,0.00029827,7]
[360765336,1746994246735,-257.227706,0.00029827,7]
[360765337,1746994246744,-1574.83,0.00029827,24]
[360765338,1746994246753,-10153.17897525,0.000299,2]
[360765339,1746994246763,-204.80492768,0.000299,21]
[360765340,1746994246774,-151.0,0.00029927,7]
[360765341,1746994246785,-1574.83,0.00029927,11]
[360765342,1746994246795,-257.30605028,0.00029973,5]
[360765343,1746994246805,-500.0,0.00029973,5]
[360765344,1746994246814,-503.921885,0.0002999,7]
[360765345,1746994246824,-503.921885,0.0002999,7]
[360765346,1746994246834,-151.0,0.0002999,7]
[360765347,1746994246843,-210.731765,0.0002999,7]
[360765348,1746994246852,-210.731765,0.0002999,7]
[360765349,1746994246862,-151.0,0.0002999,7]
[360765351,1746994246871,-151.0,0.0002999,7]
[360765352,1746994246881,-151.0,0.0002999,7]
[360765353,1746994246891,-151.0,0.0002999,7]
[360765354,1746994246900,-151.0,0.0002999,7]
[360765355,1746994246910,-151.0,0.0002999,7]
[360765356,1746994246920,-151.0,0.0002999,7]
[360765357,1746994246930,-151.0,0.0002999,7]
[360765358,1746994246940,-151.0,0.0002999,7]
[360765359,1746994246950,-151.0,0.0002999,7]
[360765360,1746994246960,-243.120331,0.0002999,7]
[360765361,1746994246969,-243.120331,0.0002999,7]
[360765362,1746994246979,-155.624774,0.0002999,7]
[360765363,1746994246988,-151.0,0.0002999,7]
[360765364,1746994246997,-1189.41789,0.0003,120]
[360765365,1746994247007,-191.5275,0.0003,2]
[360765366,1746994247016,-159.606,0.0003,2]
[360765367,1746994247026,-156988.88375961,0.0003,7]
[360765368,1746994247036,-165.89585996,0.0003,120]
[360765369,1746994247046,-11054.93873253,0.0003,30]
[360765370,1746994247055,-163.88673657,0.0003,120]
[360765371,1746994247065,-145317.23923349,0.0003,15]
[360765372,1746994247074,-339.997175,0.0003,7]
[360765373,1746994247084,-339.997175,0.0003,7]
[360765374,1746994247094,-151.0,0.0003,7]
[360765375,1746994247104,-250.750406,0.0003,7]
[360765376,1746994247114,-503.921885,0.0003,7]
[360765377,1746994247123,-503.921885,0.0003,7]
[360765379,1746994247132,-503.921885,0.0003,7]
[360765380,1746994247142,-503.921885,0.0003,7]
[360765381,1746994247151,-151.0,0.0003,7]
[360765382,1746994247160,-151.0,0.0003,7]
[360765383,1746994247170,-151.0,0.0003,7]
[360765384,1746994247179,-151.0,0.0003,7]
[360765385,1746994247189,-210.731765,0.0003,7]
[360765386,1746994247199,-210.731765,0.0003,7]
[360765387,1746994247209,-210.731765,0.0003,7]
[360765388,1746994247218,-210.731765,0.0003,7]
[360765389,1746994247227,-255.37,0.0003,2]
[360765390,1746994247237,-151.0,0.0003,7]
[360765391,1746994247246,-151.0,0.0003,7]
[360765392,1746994247256,-383.398868,0.0003,7]
[360765393,1746994247265,-383.398868,0.0003,7]
[360765394,1746994247274,-383.398868,0.0003,7]
[360765395,1746994247283,-383.398868,0.0003,7]
[360765396,1746994247292,-151.0,0.0003,7]
[360765397,1746994247303,-158.078168,0.0003,7]
[360765398,1746994247313,-151.0,0.0003,7]
[360765399,1746994247322,-151.0,0.0003,7]
[360765400,1746994247331,-151.0,0.0003,7]
[360765401,1746994247342,-151.0,0.0003,7]
[360765402,1746994247352,-151.0,0.0003,7]
[360765403,1746994247362,-192.443613,0.0003,7]
[360765404,1746994247371,-192.443613,0.0003,7]
[360765405,1746994247382,-192.443613,0.0003,7]
[360765406,1746994247392,-192.443613,0.0003,7]
[360765407,1746994247401,-151.0,0.0003,7]
[360765408,1746994247411,-157.874892,0.0003,7]
[360765409,1746994247420,-151.0,0.0003,7]
[360765410,1746994247429,-179.760661,0.0003,7]
[360765411,1746994247439,-151.0,0.0003,7]
[360765412,1746994247449,-151.0,0.0003,7]
[360765413,1746994247459,-151.0,0.0003,7]
[360765414,1746994247468,-151.0,0.0003,7]
[360765415,1746994247477,-151.0,0.0003,7]
[360765416,1746994247486,-151.0,0.0003,7]
[360765417,1746994247495,-151.0,0.0003,7]
[360765418,1746994247505,-151.0,0.0003,7]
[360765419,1746994247514,-151.0,0.0003,7]
[360765420,1746994247524,-151.0,0.0003,7]
[360765421,1746994247534,-151.0,0.0003,7]
[360765422,1746994247544,-151.0,0.0003,7]
[360765423,1746994247553,-289.573822,0.0003,7]
[360765424,1746994247563,-325.0,0.0003,7]
[360765425,1746994247572,-350.0,0.0003,120]
[360765426,1746994247582,-243.120331,0.0003,7]
[360765427,1746994247591,-243.120331,0.0003,7]
[360765428,1746994247602,-243.120331,0.0003,7]
[360765429,1746994247612,-243.120331,0.0003,7]
[360765430,1746994247621,-151.0,0.0003,7]
[360765431,1746994247631,-153.49358,0.0003,7]
[360765432,1746994247640,-268.172939,0.0003,7]
[360765433,1746994247650,-268.172939,0.0003,7]
[360765434,1746994247659,-151.0,0.0003,7]
[360765435,1746994247669,-151.0,0.0003,7]
[360765436,1746994247678,-268.172939,0.0003,7]
[360765437,1746994247687,-268.172939,0.0003,7]
[360765438,1746994247696,-215.689703,0.0003,7]
[360765439,1746994247706,-314.1995513,0.0003,120]
[360765440,1746994247715,-234.0,0.0003,2]
[360765441,1746994247725,-151.0,0.0003,7]
[360765442,1746994247735,-151.0,0.0003,7]
[360765443,1746994247744,-151.0,0.0003,7]
[360765444,1746994247753,-151.0,0.0003,7]
[360765445,1746994247763,-165.784968,0.0003,7]
[360765446,1746994247772,-155.928349,0.0003,15]
[360765447,1746994247782,-501.35271002,0.0003,2]
[360765448,1746994247791,-2000.0,0.0003,4]
[360765449,1746994247800,-30709.02,0.0003,30]
[360765450,1746994247809,-1574.83,0.00030027,17]
[360765451,1746994247819,-1041.04627184,0.0003004,2]
[360765452,1746994247828,-1574.83,0.00030127,20]
[360765453,1746994247837,-997.999999,0.0003013,2]
[360765454,1746994247847,-700.0,0.00030136,120]
[360765455,1746994247856,-700.0,0.00030136,120]
[360765456,1746994247865,-700.0,0.00030136,120]
[360765457,1746994247874,-700.0,0.00030136,120]
[360765458,1746994247884,-700.0,0.00030136,120]
[360765459,1746994247893,-700.0,0.00030136,120]
[360765460,1746994247903,-700.0,0.00030136,120]
[360765461,1746994247912,-700.0,0.00030136,120]
[360765462,1746994247921,-700.0,0.00030136,120]
[360765463,1746994248091,-700.0,0.00030136,120]
[360765464,1746994248100,-700.0,0.00030136,120]
[360765465,1746994248110,-846.75010424,0.00030136,120]
[360765466,1746994248120,-400.0,0.00030137,60]
[360765467,1746994248130,-600.0,0.00030137,5]
[360765468,1746994248140,-41901.74005154,0.00030139,120]
[360765469,1746994248149,-10153.17897525,0.00030153,2]
[360765470,1746994248159,-151.0,0.00030154,7]
[360765471,1746994248169,-151.0,0.00030154,7]
[360765472,1746994248179,-291.280783,0.00030185,7]
[360765473,1746994248188,-291.280783,0.00030185,7]
[360765474,1746994248197,-424.491282,0.00030185,7]
[360765475,1746994248207,-362.919736,0.00030189,30]
[360765476,1746994248216,-1574.83,0.00030227,11]
[360765477,1746994248226,-151.0,0.00030307,7]
[360765478,1746994248235,-151.0,0.00030327,7]
[360765479,1746994248244,-1574.83,0.00030327,26]
[360765480,1746994248254,-204.80492768,0.00030329,22]
[360765481,1746994248263,-439.4216746,0.00030356,30]
[360765482,1746994248274,-362.919736,0.00030356,30]
[360765483,1746994248283,-362.919736,0.00030356,30]
[360765484,1746994248294,-362.919736,0.00030356,30]
[360765485,1746994248310,-312.0893089,0.00030356,30]
[360765486,1746994248321,-10153.17897525,0.00030406,2]